[Event "Ural District-ch Women 2020"]
[Site "Chelyabinsk"]
[Date "2020.10.05"]
[Round "9.5"]
[White "Baranova, Elizaveta"]
[Black "Mikheeva, Galina"]
[Result "0-1"]
[ECO "C50"]
[WhiteElo "1620"]
[BlackElo "1901"]
[Annotator "ChessBase"]
[PlyCount "62"]
[EventDate "2020.10.01"]
[EventType "swiss"]
[EventCountry "RUS"]
[SourceTitle "playchess.com"]
[Source "ChessBase"]
[SourceQuality "1"]
[TimeControl "5400+30"]

1. e4 {[%emt 0:00:00]} e5 {[%emt 0:00:00]} 2. Nf3 {[%emt 0:00:00]} Nc6 {[%emt 0:00:00]} 3. Bc4 {[%emt 0:00:00]} Bc5 {[%emt 0:00:00]} 4. Nc3 {[%emt 0:00:00]} Nf6 {[%emt 0:00:00]} 5. d3 {[%emt 0:00:08]} d6 {[%emt 0:00:00]} 6. Be3 {[%emt 0:00:15]} Bb6 {[%emt 0:00:17]} 7. d4 {[%emt 0:02:52]} exd4 {[%emt 0:00:32]} 8. Nxd4 {[%emt 0:00:08]} Ne5 {[%emt 0:05:42]} 9. Be2 {[%emt 0:00:52]} d5 {[%emt 0:06:04]} 10. exd5 {[%emt 0:19:30]} Nxd5 {[%emt 0:00:28]} 11. Nxd5 {[%emt 0:19:02]} Qxd5 {[%emt 0:00:11]} 12. f3 {[%emt 0:04:32]} O-O {[%emt 0:01:09]} 13. O-O {[%emt 0:02:11]} Rd8 {[%emt 0:03:59]} 14. c3 {[%emt 0:00:10]} Nc6 {[%emt 0:02:05]} 15. Qc1 {[%emt 0:03:12]} Nxd4 {[%emt 0:07:16]} 16. cxd4 {[%emt 0:00:06]} Bxd4 {[%emt 0:01:33]} 17. Rd1 {[%emt 0:00:33]} c5 {[%emt 0:00:25]} 18. Bxd4 {[%emt 0:04:57]} cxd4 {[%emt 0:00:07]} 19. Bc4 {[%emt 0:00:06]} Qd6 {[%emt 0:02:10]} 20. Qg5 {[%emt 0:00:54]} Be6 {[%emt 0:01:14]} 21. Bd3 {[%emt 0:00:01]} Rac8 {[%emt 0:15:39]} 22. Qh4 {[%emt 0:00:46]} g6 {[%emt 0:02:18]} 23. f4 {[%emt 0:03:49]} f5 {[%emt 0:13:50]} 24. Re1 {[%emt 0:00:31]} Bf7 {[%emt 0:12:11]} 25. Qg5 {[%emt 0:00:30]} Rc7 {[%emt 0:10:37]} 26. Bxf5 {[%emt 0:06:02]} d3 {[%emt 0:01:47]} 27. b3 {[%emt 0:03:30]} d2 {[%emt 0:02:44]} 28. Rf1 {[%emt 0:00:20]} Qd4+ {[%emt 0:01:57]} 29. Kh1 {[%emt 0:00:06]} Rc5 {[%emt 0:00:31]} 30. Qe7 {[%emt 0:00:39]} Rxf5 {[%emt 0:00:26]} 31. Qxb7 {[%emt 0:00:36]} Qxa1 {[%emt 0:00:37]} 0-1